[Event "*** Titled Tuesday 3|2 Blitz"]
[Site "Chess.com"]
[Date "2015.07.07"]
[Round "7"]
[White "Carolina-moon"]
[Black "lukas_111111"]
[Result "0-1"]
[WhiteElo "1984"]
[BlackElo "2178"]
[TimeControl "180+2"]
[EndTime "12:27:49 PDT"]
[Termination "lukas_111111 won on time"]

1. e4 {[%clk 0:03:01.9]} 1... c5 {[%clk 0:03:00.3]} 2. Nc3 {[%clk 0:02:59.9]}
2... d6 {[%clk 0:03:00.9]} 3. f4 {[%clk 0:03:00.2]} 3... Nf6 {[%clk 0:03:01.6]}
4. Nf3 {[%clk 0:03:01.2]} 4... g6 {[%clk 0:03:02.9]} 5. Bc4 {[%clk 0:02:57.8]}
5... Bg7 {[%clk 0:03:03]} 6. O-O {[%clk 0:02:58.2]} 6... O-O {[%clk 0:03:02.5]}
7. Qe1 {[%clk 0:02:56]} 7... Nc6 {[%clk 0:03:02.7]} 8. d3 {[%clk 0:02:53.5]}
8... Nd4 {[%clk 0:03:03.3]} 9. Nxd4 {[%clk 0:02:50.3]} 9... cxd4 {[%clk
0:03:04]} 10. Ne2 {[%clk 0:02:51.8]} 10... d5 {[%clk 0:03:04.8]} 11. exd5 {[%clk
0:02:41.3]} 11... Nxd5 {[%clk 0:03:05.5]} 12. Qf2 {[%clk 0:02:35.7]} 12... b5
{[%clk 0:03:02.7]} 13. Bb3 {[%clk 0:02:33]} 13... a5 {[%clk 0:02:50.1]} 14. a4
{[%clk 0:02:33.4]} 14... bxa4 {[%clk 0:02:44.8]} 15. Rxa4 {[%clk 0:02:33.1]}
15... Nb6 {[%clk 0:02:45.3]} 16. Ra3 {[%clk 0:02:25.6]} 16... Bb7 {[%clk
0:02:42.4]} 17. Bd2 {[%clk 0:02:20.9]} 17... a4 {[%clk 0:02:42.1]} 18. Ba2
{[%clk 0:02:13.2]} 18... Qd6 {[%clk 0:02:35.2]} 19. f5 {[%clk 0:02:07.8]} 19...
Rac8 {[%clk 0:02:29.1]} 20. fxg6 {[%clk 0:02:01.5]} 20... Qxg6 {[%clk
0:02:15.4]} 21. Nf4 {[%clk 0:01:55.3]} 21... Qd6 {[%clk 0:01:52.5]} 22. Nh5
{[%clk 0:01:43.1]} 22... Bd5 {[%clk 0:01:45.1]} 23. Nxg7 {[%clk 0:01:39]} 23...
Kxg7 {[%clk 0:01:43.4]} 24. Qxd4+ {[%clk 0:01:36.8]} 24... e5 {[%clk 0:01:42]}
25. Qg4+ {[%clk 0:01:34.4]} 25... Kh8 {[%clk 0:01:43.1]} 26. Bxd5 {[%clk
0:01:33]} 26... Nxd5 {[%clk 0:01:42.3]} 27. Rxa4 {[%clk 0:00:53.4]} 27... Rxc2
{[%clk 0:01:33.5]} 28. Bg5 {[%clk 0:00:11]} 28... Rg8 {[%clk 0:01:27.1]} 29.
Rxf7 {[%clk 0:00:09.5]} 29... Qb6+ {[%clk 0:01:01.4]} 30. Kf1 {[%clk 0:00:04.8]}
30... Qxb2 {[%clk 0:01:01.7]} 0-1

[Event "*** Titled Tuesday 3|2 Blitz"]
[Site "Chess.com"]
[Date "2015.07.07"]
[Round "7"]
[White "Lupul_Cenusiu"]
[Black "jbj"]
[Result "0-1"]
[WhiteElo "2377"]
[BlackElo "2293"]
[TimeControl "180+2"]
[EndTime "12:28:21 PDT"]
[Termination "jbj won by resignation"]

1. d4 {[%clk 0:03:01.9]} 1... Nf6 {[%clk 0:03:00.8]} 2. c4 {[%clk 0:02:59.9]}
2... e6 {[%clk 0:03:01.9]} 3. Nc3 {[%clk 0:03:00.8]} 3... Bb4 {[%clk 0:03:02.8]}
4. e3 {[%clk 0:03:01.9]} 4... O-O {[%clk 0:02:58.9]} 5. Ne2 {[%clk 0:03:02.6]}
5... d6 {[%clk 0:02:47.9]} 6. a3 {[%clk 0:03:00.1]} 6... Bxc3+ {[%clk
0:02:48.8]} 7. Nxc3 {[%clk 0:03:01.1]} 7... Nbd7 {[%clk 0:02:50.4]} 8. Bd3
{[%clk 0:02:58.8]} 8... b6 {[%clk 0:02:51.2]} 9. O-O {[%clk 0:02:59.2]} 9... Bb7
{[%clk 0:02:52.4]} 10. f3 {[%clk 0:02:57.1]} 10... e5 {[%clk 0:02:51.9]} 11. Qc2
{[%clk 0:02:55.3]} 11... a5 {[%clk 0:02:51.2]} 12. b3 {[%clk 0:02:55.7]} 12...
Re8 {[%clk 0:02:50]} 13. Bd2 {[%clk 0:02:57]} 13... h6 {[%clk 0:02:48.9]} 14.
Rae1 {[%clk 0:02:56.5]} 14... exd4 {[%clk 0:02:44.6]} 15. exd4 {[%clk
0:02:57.2]} 15... c6 {[%clk 0:02:42]} 16. Ne4 {[%clk 0:02:52.5]} 16... Nxe4
{[%clk 0:02:42.4]} 17. fxe4 {[%clk 0:02:51.9]} 17... c5 {[%clk 0:02:40.9]} 18.
Bc3 {[%clk 0:02:48.8]} 18... cxd4 {[%clk 0:02:41.7]} 19. Bxd4 {[%clk 0:02:50.1]}
19... Ne5 {[%clk 0:02:43.1]} 20. Be2 {[%clk 0:02:48.6]} 20... Rc8 {[%clk
0:02:34]} 21. a4 {[%clk 0:02:47.7]} 21... Qh4 {[%clk 0:02:20.1]} 22. Bd1 {[%clk
0:02:36.1]} 22... d5 {[%clk 0:02:06.5]} 23. Bf2 {[%clk 0:02:29.5]} 23... Qd8
{[%clk 0:01:56.5]} 24. exd5 {[%clk 0:02:30.1]} 24... Bxd5 {[%clk 0:01:57.1]} 25.
Qd2 {[%clk 0:02:28.8]} 25... Ba8 {[%clk 0:01:32.7]} 26. Qxd8 {[%clk 0:02:29.2]}
26... Rcxd8 {[%clk 0:01:33.4]} 27. Bxb6 {[%clk 0:02:29.4]} 27... Rd2 {[%clk
0:01:34.2]} 28. Rf2 {[%clk 0:02:25.3]} 28... Nf3+ {[%clk 0:01:32.8]} 29. Bxf3
{[%clk 0:02:17.6]} 29... Rxe1+ {[%clk 0:01:32.1]} 30. Rf1 {[%clk 0:02:18.4]}
30... Rxf1+ {[%clk 0:01:27.2]} 31. Kxf1 {[%clk 0:02:19.1]} 31... Bxf3 {[%clk
0:01:27.2]} 32. gxf3 {[%clk 0:02:20.1]} 32... Rd3 {[%clk 0:01:28.5]} 33. Bxa5
{[%clk 0:02:18.7]} 33... Rxf3+ {[%clk 0:01:27.1]} 34. Ke2 {[%clk 0:02:16.6]}
34... Rxb3 {[%clk 0:01:27.9]} 35. c5 {[%clk 0:02:17.9]} 35... Ra3 {[%clk
0:01:25.5]} 36. c6 {[%clk 0:02:17.3]} 36... Rxa4 {[%clk 0:01:26]} 37. c7 {[%clk
0:02:18.3]} 37... Rc4 {[%clk 0:01:27]} 38. Kd3 {[%clk 0:02:19.5]} 38... Rc6
{[%clk 0:01:25.9]} 39. Kd4 {[%clk 0:02:20.7]} 39... Kf8 {[%clk 0:01:16.3]} 40.
Kd5 {[%clk 0:02:21.3]} 40... Rc2 {[%clk 0:01:16.1]} 41. Kd6 {[%clk 0:02:20]}
41... Ke8 {[%clk 0:01:17.1]} 42. Bb6 {[%clk 0:02:14.5]} 42... g6 {[%clk
0:01:08.6]} 43. Be3 {[%clk 0:02:13.6]} 43... g5 {[%clk 0:01:02.2]} 44. Bd4
{[%clk 0:02:14.3]} 44... f5 {[%clk 0:00:57]} 45. Bg7 {[%clk 0:02:14.9]} 45... h5
{[%clk 0:00:54.4]} 46. Bh6 {[%clk 0:02:15.4]} 46... g4 {[%clk 0:00:44.4]} 47.
Bg5 {[%clk 0:02:15.4]} 47... Rc4 {[%clk 0:00:40.3]} 48. Be3 {[%clk 0:02:04.6]}
48... h4 {[%clk 0:00:38.3]} 49. Bf2 {[%clk 0:02:05.8]} 49... g3 {[%clk 0:00:22]}
50. hxg3 {[%clk 0:02:06.4]} 50... h3 {[%clk 0:00:23.3]} 51. Bg1 {[%clk
0:02:07.7]} 51... Rc2 {[%clk 0:00:21.2]} 52. Bh2 {[%clk 0:02:08.6]} 52... Kf7
{[%clk 0:00:21.5]} 53. Kd7 {[%clk 0:02:05.6]} 53... Rd2+ {[%clk 0:00:21.3]} 54.
Kc6 {[%clk 0:02:05.8]} 54... Rxh2 {[%clk 0:00:21.8]} 0-1

[Event "*** Titled Tuesday 3|2 Blitz"]
[Site "Chess.com"]
[Date "2015.07.07"]
[Round "7"]
[White "alexsuper1987"]
[Black "matein28"]
[Result "0-1"]
[WhiteElo "2050"]
[BlackElo "2191"]
[TimeControl "180+2"]
[EndTime "12:29:01 PDT"]
[Termination "matein28 won by resignation"]

1. e4 {[%clk 0:03:01.9]} 1... d5 {[%clk 0:03:01]} 2. Nc3 {[%clk 0:02:59.3]} 2...
dxe4 {[%clk 0:03:01.9]} 3. Nxe4 {[%clk 0:03:01.2]} 3... c6 {[%clk 0:03:03.1]} 4.
Bc4 {[%clk 0:02:57.2]} 4... Bf5 {[%clk 0:03:03.8]} 5. Ng3 {[%clk 0:02:52.3]}
5... Bg6 {[%clk 0:03:04.7]} 6. d4 {[%clk 0:02:50.5]} 6... e6 {[%clk 0:03:05.7]}
7. N1e2 {[%clk 0:02:51.3]} 7... Nd7 {[%clk 0:03:06]} 8. O-O {[%clk 0:02:51.7]}
8... Ngf6 {[%clk 0:03:07.3]} 9. f4 {[%clk 0:02:52.5]} 9... Nb6 {[%clk
0:03:08.4]} 10. Bd3 {[%clk 0:02:50.3]} 10... Bxd3 {[%clk 0:03:06]} 11. Qxd3
{[%clk 0:02:52.2]} 11... g6 {[%clk 0:03:06.5]} 12. f5 {[%clk 0:02:27.6]} 12...
gxf5 {[%clk 0:03:06.1]} 13. Bg5 {[%clk 0:02:21.5]} 13... Be7 {[%clk 0:03:05.3]}
14. Nxf5 {[%clk 0:02:19.6]} 14... exf5 {[%clk 0:02:50.9]} 15. Qxf5 {[%clk
0:02:20.7]} 15... Nbd7 {[%clk 0:02:47.9]} 16. Ng3 {[%clk 0:02:05.9]} 16... O-O
{[%clk 0:02:39]} 17. Bh6 {[%clk 0:02:02.8]} 17... Kh8 {[%clk 0:02:31.7]} 18.
Rae1 {[%clk 0:01:36.6]} 18... Rg8 {[%clk 0:02:16.2]} 19. Ne4 {[%clk 0:01:22.1]}
19... Rg6 {[%clk 0:01:56.4]} 20. Ng5 {[%clk 0:01:19.1]} 20... Kg8 {[%clk
0:01:42.3]} 21. Qh3 {[%clk 0:00:24]} 21... Bf8 {[%clk 0:01:31.3]} 22. Nxf7
{[%clk 0:00:22.4]} 22... Qb6 {[%clk 0:01:16.4]} 23. Qe6 {[%clk 0:00:21]} 23...
Qxd4+ {[%clk 0:00:21.8]} 24. Be3 {[%clk 0:00:22.1]} 24... Qd5 {[%clk 0:00:20]}
25. Nh6+ {[%clk 0:00:23.3]} 25... Kh8 {[%clk 0:00:20.1]} 26. Nf7+ {[%clk
0:00:24.3]} 26... Kg7 {[%clk 0:00:21.3]} 27. Qh3 {[%clk 0:00:11]} 27... Qxf7
{[%clk 0:00:14.5]} 28. Bd4 {[%clk 0:00:09.8]} 28... Be7 {[%clk 0:00:13.4]} 29.
Re6 {[%clk 0:00:09.8]} 29... Rf8 {[%clk 0:00:13]} 30. Rfe1 {[%clk 0:00:10.6]}
30... Bd8 {[%clk 0:00:12.9]} 31. Qc3 {[%clk 0:00:10.5]} 31... Kg8 {[%clk
0:00:13.7]} 32. g3 {[%clk 0:00:09.7]} 32... c5 {[%clk 0:00:14]} 33. Bxc5 {[%clk
0:00:06.5]} 33... Nxc5 {[%clk 0:00:14.3]} 34. Qxc5 {[%clk 0:00:08.4]} 34... Bb6
{[%clk 0:00:15.7]} 35. Rxb6 {[%clk 0:00:07.8]} 35... axb6 {[%clk 0:00:17.6]} 36.
Qf2 {[%clk 0:00:08.7]} 36... Ng4 {[%clk 0:00:18]} 37. Qg2 {[%clk 0:00:09]} 37...
Qf2+ {[%clk 0:00:17.7]} 38. Qxf2 {[%clk 0:00:10.2]} 38... Nxf2 {[%clk
0:00:19.6]} 0-1

[Event "*** Titled Tuesday 3|2 Blitz"]
[Site "Chess.com"]
[Date "2015.07.07"]
[Round "7"]
[White "ChessWarrior7197"]
[Black "Cruel_Yaro"]
[Result "1-0"]
[WhiteElo "2329"]
[BlackElo "2476"]
[TimeControl "180+2"]
[EndTime "12:29:10 PDT"]
[Termination "ChessWarrior7197 won by resignation"]

1. e4 {[%clk 0:03:01.9]} 1... e6 {[%clk 0:02:59.6]} 2. d4 {[%clk 0:03:01.3]}
2... d5 {[%clk 0:03:00.7]} 3. Nd2 {[%clk 0:03:01.9]} 3... c5 {[%clk 0:02:59.7]}
4. exd5 {[%clk 0:03:01.9]} 4... Qxd5 {[%clk 0:02:59.1]} 5. Ngf3 {[%clk
0:02:56.9]} 5... cxd4 {[%clk 0:02:59.8]} 6. Bc4 {[%clk 0:02:57.2]} 6... Qd6
{[%clk 0:03:00.6]} 7. O-O {[%clk 0:02:50.2]} 7... Nf6 {[%clk 0:03:01.5]} 8. Nb3
{[%clk 0:02:48.5]} 8... Nc6 {[%clk 0:02:58.9]} 9. Nbxd4 {[%clk 0:02:47.4]} 9...
Nxd4 {[%clk 0:03:00.4]} 10. Nxd4 {[%clk 0:02:48]} 10... a6 {[%clk 0:03:01.6]}
11. c3 {[%clk 0:02:43.7]} 11... Qc7 {[%clk 0:03:00.1]} 12. Bb3 {[%clk
0:02:44.3]} 12... Bd6 {[%clk 0:02:58.7]} 13. h3 {[%clk 0:02:44.2]} 13... O-O
{[%clk 0:02:54.9]} 14. Bc2 {[%clk 0:02:44.4]} 14... Be5 {[%clk 0:02:12.9]} 15.
Bg5 {[%clk 0:02:28]} 15... h6 {[%clk 0:02:09.9]} 16. Be3 {[%clk 0:02:28]} 16...
Nd5 {[%clk 0:02:00.3]} 17. Qd3 {[%clk 0:02:27.7]} 17... f5 {[%clk 0:01:56.6]}
18. Rae1 {[%clk 0:02:22.2]} 18... Bd7 {[%clk 0:01:41.3]} 19. Bb3 {[%clk
0:02:19.3]} 19... Rad8 {[%clk 0:01:29.5]} 20. Bc1 {[%clk 0:02:05.4]} 20... Kh8
{[%clk 0:01:07.8]} 21. Rd1 {[%clk 0:01:57.5]} 21... Bxd4 {[%clk 0:00:59.6]} 22.
Qxd4 {[%clk 0:01:53.7]} 22... Bb5 {[%clk 0:01:01]} 23. Rfe1 {[%clk 0:01:26.3]}
23... Nf6 {[%clk 0:00:56.9]} 24. Qe3 {[%clk 0:01:23.3]} 24... Ne4 {[%clk
0:00:19.3]} 25. Bxe6 {[%clk 0:01:17.3]} 25... Rxd1 {[%clk 0:00:17.1]} 26. Rxd1
{[%clk 0:01:17.4]} 26... Bc6 {[%clk 0:00:18.1]} 27. Bb3 {[%clk 0:01:11.7]} 27...
Ng5 {[%clk 0:00:17.9]} 28. Qf4 {[%clk 0:01:01.8]} 28... Qe7 {[%clk 0:00:17.7]}
29. Be3 {[%clk 0:00:57.8]} 29... Qe8 {[%clk 0:00:15.7]} 30. h4 {[%clk
0:00:52.3]} 30... Ne4 {[%clk 0:00:15.6]} 31. f3 {[%clk 0:00:44.7]} 31... Ng3
{[%clk 0:00:15.3]} 32. Qxg3 {[%clk 0:00:42.3]} 32... Qxe3+ {[%clk 0:00:16]} 33.
Qf2 {[%clk 0:00:43.4]} 33... Qe7 {[%clk 0:00:17.2]} 34. Re1 {[%clk 0:00:43.5]}
34... Qf6 {[%clk 0:00:18.2]} 35. Qd4 {[%clk 0:00:42.9]} 35... Qg6 {[%clk
0:00:16.2]} 36. Re6 {[%clk 0:00:42.5]} 36... Qh5 {[%clk 0:00:14.3]} 37. Bd1
{[%clk 0:00:35.5]} 37... Qf7 {[%clk 0:00:13.6]} 38. Rxh6+ {[%clk 0:00:35.6]} 1-0

[Event "*** Titled Tuesday 3|2 Blitz"]
[Site "Chess.com"]
[Date "2015.07.07"]
[Round "7"]
[White "Jahonas"]
[Black "Danirod"]
[Result "1-0"]
[WhiteElo "2126"]
[BlackElo "2384"]
[TimeControl "180+2"]
[EndTime "12:29:26 PDT"]
[Termination "Jahonas won by resignation"]

1. d4 {[%clk 0:03:01.9]} 1... Nf6 {[%clk 0:03:00.5]} 2. Nf3 {[%clk 0:02:59.7]}
2... e6 {[%clk 0:03:01.7]} 3. Nbd2 {[%clk 0:03:00.6]} 3... c5 {[%clk 0:03:02.7]}
4. dxc5 {[%clk 0:03:00]} 4... Bxc5 {[%clk 0:03:03.3]} 5. e3 {[%clk 0:03:01.4]}
5... Nc6 {[%clk 0:03:03.4]} 6. a3 {[%clk 0:03:01.8]} 6... a5 {[%clk 0:02:53.9]}
7. c4 {[%clk 0:03:02.6]} 7... d5 {[%clk 0:02:54.7]} 8. Be2 {[%clk 0:03:02.9]}
8... O-O {[%clk 0:02:55.5]} 9. O-O {[%clk 0:03:03.4]} 9... b6 {[%clk 0:02:55.2]}
10. b3 {[%clk 0:03:04.1]} 10... Ba6 {[%clk 0:02:54.9]} 11. Bb2 {[%clk
0:03:04.7]} 11... Qe7 {[%clk 0:02:44.7]} 12. cxd5 {[%clk 0:03:05.6]} 12... Nxd5
{[%clk 0:02:45.3]} 13. Bxa6 {[%clk 0:03:06.1]} 13... Rxa6 {[%clk 0:02:46.8]} 14.
Qe2 {[%clk 0:03:06.9]} 14... Ra7 {[%clk 0:02:47]} 15. Ne4 {[%clk 0:03:04.3]}
15... Rc8 {[%clk 0:02:38.5]} 16. Nxc5 {[%clk 0:03:03.4]} 16... Qxc5 {[%clk
0:02:38.4]} 17. Rac1 {[%clk 0:03:03.5]} 17... Qd6 {[%clk 0:02:36.6]} 18. Rfd1
{[%clk 0:03:01.7]} 18... Qf8 {[%clk 0:02:26]} 19. e4 {[%clk 0:02:51.2]} 19...
Nde7 {[%clk 0:02:16.4]} 20. Qb5 {[%clk 0:02:45.2]} 20... Rb7 {[%clk 0:02:10.6]}
21. g3 {[%clk 0:02:34.2]} 21... Qe8 {[%clk 0:02:11.7]} 22. Ne5 {[%clk
0:02:27.8]} 22... f6 {[%clk 0:02:04.4]} 23. Nxc6 {[%clk 0:02:27.3]} 23... Rxc6
{[%clk 0:02:05.6]} 24. Rxc6 {[%clk 0:02:25.2]} 24... Qxc6 {[%clk 0:02:05.4]} 25.
Qxc6 {[%clk 0:02:20.9]} 25... Nxc6 {[%clk 0:02:06.7]} 26. Rd6 {[%clk 0:02:21.5]}
26... Ne7 {[%clk 0:01:47.9]} 27. Rxe6 {[%clk 0:02:19.4]} 27... Kf7 {[%clk
0:01:49.5]} 28. Rd6 {[%clk 0:02:18.8]} 28... Nc8 {[%clk 0:01:49.3]} 29. Rc6
{[%clk 0:02:15.4]} 29... Ne7 {[%clk 0:01:49.7]} 30. Rd6 {[%clk 0:02:15.4]} 30...
Nc8 {[%clk 0:01:50.9]} 31. Rd2 {[%clk 0:02:09.5]} 31... Rc7 {[%clk 0:01:49.5]}
32. f4 {[%clk 0:02:07.3]} 32... Ke7 {[%clk 0:01:44.9]} 33. Kf2 {[%clk
0:02:07.2]} 33... Nd6 {[%clk 0:01:41.1]} 34. Ke3 {[%clk 0:02:06.5]} 34... Rc6
{[%clk 0:01:26.7]} 35. e5 {[%clk 0:02:04.1]} 35... Nb7 {[%clk 0:01:14.1]} 36.
exf6+ {[%clk 0:01:59.1]} 36... gxf6 {[%clk 0:01:15.5]} 37. a4 {[%clk 0:01:51.3]}
37... Ke6 {[%clk 0:01:05.3]} 38. Ba3 {[%clk 0:01:45.7]} 38... Rc3+ {[%clk
0:01:05.5]} 39. Rd3 {[%clk 0:01:46.4]} 39... Rc2 {[%clk 0:00:43.6]} 40. h4
{[%clk 0:01:14.8]} 40... h5 {[%clk 0:00:35.6]} 41. Ke4 {[%clk 0:01:10.3]} 41...
Ra2 {[%clk 0:00:26.3]} 42. f5+ {[%clk 0:01:09.9]} 42... Kf7 {[%clk 0:00:23.6]}
43. Rd7+ {[%clk 0:01:07.2]} 43... Ke8 {[%clk 0:00:24.5]} 44. Rxb7 {[%clk
0:01:07]} 44... Rxa3 {[%clk 0:00:26]} 45. Rxb6 {[%clk 0:01:08.2]} 45... Ke7
{[%clk 0:00:27.2]} 46. Kd5 {[%clk 0:01:06.1]} 46... Ra2 {[%clk 0:00:27.9]} 47.
Rb7+ {[%clk 0:01:07]} 47... Kd8 {[%clk 0:00:28.8]} 48. Ke6 {[%clk 0:01:07.4]}
48... Rg2 {[%clk 0:00:29.9]} 49. Rg7 {[%clk 0:01:07.5]} 49... Rb2 {[%clk
0:00:30.3]} 50. Kxf6 {[%clk 0:01:08]} 50... Rxb3 {[%clk 0:00:31.8]} 51. Rg8+
{[%clk 0:01:08.9]} 51... Kd7 {[%clk 0:00:32.8]} 52. Kf7 {[%clk 0:01:09.5]} 52...
Rb4 {[%clk 0:00:34.2]} 53. f6 {[%clk 0:01:09.8]} 53... Rxa4 {[%clk 0:00:35.8]}
54. Rg5 {[%clk 0:01:04.6]} 54... Ra3 {[%clk 0:00:35.2]} 55. Rxh5 {[%clk
0:01:03.3]} 55... Rxg3 {[%clk 0:00:35.6]} 56. Rxa5 {[%clk 0:01:04.2]} 56... Rh3
{[%clk 0:00:36.5]} 57. Rd5+ {[%clk 0:01:04]} 57... Kc6 {[%clk 0:00:37.5]} 58.
Rd4 {[%clk 0:01:05.1]} 58... Kc7 {[%clk 0:00:38.2]} 59. Ke7 {[%clk 0:01:00.5]}
59... Re3+ {[%clk 0:00:38.7]} 60. Kf8 {[%clk 0:01:01.4]} 60... Rh3 {[%clk
0:00:39.3]} 61. f7 {[%clk 0:01:02.5]} 61... Rg3 {[%clk 0:00:40.5]} 62. Ke7
{[%clk 0:00:57.9]} 62... Re3+ {[%clk 0:00:41.4]} 63. Kf6 {[%clk 0:00:58.6]}
63... Rf3+ {[%clk 0:00:43]} 64. Kg6 {[%clk 0:00:58.6]} 64... Rg3+ {[%clk
0:00:44]} 65. Kf5 {[%clk 0:00:56.8]} 65... Rf3+ {[%clk 0:00:44.7]} 66. Rf4
{[%clk 0:00:57.4]} 1-0

[Event "*** Titled Tuesday 3|2 Blitz"]
[Site "Chess.com"]
[Date "2015.07.07"]
[Round "7"]
[White "GMHess"]
[Black "KyronGriffith"]
[Result "1-0"]
[WhiteElo "2533"]
[BlackElo "2263"]
[TimeControl "180+2"]
[EndTime "12:30:01 PDT"]
[Termination "GMHess won by resignation"]

1. b3 {[%clk 0:03:01.9]} 1... e5 {[%clk 0:03:00.1]} 2. Bb2 {[%clk 0:03:00.4]}
2... Nc6 {[%clk 0:03:01.1]} 3. e3 {[%clk 0:03:01.5]} 3... Nf6 {[%clk 0:03:02.7]}
4. Bb5 {[%clk 0:03:02.2]} 4... Bd6 {[%clk 0:03:04.1]} 5. Ne2 {[%clk 0:03:03.6]}
5... a6 {[%clk 0:03:04.8]} 6. Bxc6 {[%clk 0:03:03.4]} 6... dxc6 {[%clk
0:03:06.7]} 7. Ng3 {[%clk 0:03:04.8]} 7... h5 {[%clk 0:03:04.8]} 8. Nc3 {[%clk
0:03:00.9]} 8... h4 {[%clk 0:02:59.5]} 9. Nge4 {[%clk 0:03:01.5]} 9... Bf5
{[%clk 0:02:56.3]} 10. Qf3 {[%clk 0:02:57.4]} 10... Bg6 {[%clk 0:02:45.7]} 11.
Nxf6+ {[%clk 0:02:47]} 11... Qxf6 {[%clk 0:02:47.6]} 12. Qxf6 {[%clk 0:02:47.8]}
12... gxf6 {[%clk 0:02:49.4]} 13. O-O-O {[%clk 0:02:49.2]} 13... O-O-O {[%clk
0:02:48]} 14. d3 {[%clk 0:02:48.3]} 14... b5 {[%clk 0:02:47.3]} 15. Ne2 {[%clk
0:02:44.8]} 15... Kb7 {[%clk 0:02:41.1]} 16. d4 {[%clk 0:02:38.3]} 16... c5
{[%clk 0:02:33.5]} 17. dxe5 {[%clk 0:02:32.5]} 17... fxe5 {[%clk 0:02:29]} 18.
f3 {[%clk 0:02:28.8]} 18... f6 {[%clk 0:02:26]} 19. e4 {[%clk 0:02:28.4]} 19...
Be7 {[%clk 0:02:20.5]} 20. Rxd8 {[%clk 0:02:22.3]} 20... Rxd8 {[%clk 0:02:22.4]}
21. g4 {[%clk 0:02:21]} 21... Bf8 {[%clk 0:02:16.6]} 22. Bc3 {[%clk 0:02:12.6]}
22... Bh6+ {[%clk 0:02:14.6]} 23. Kb2 {[%clk 0:02:04.1]} 23... b4 {[%clk
0:02:11.1]} 24. Be1 {[%clk 0:02:05.1]} 24... Rd1 {[%clk 0:02:08]} 25. Rg1 {[%clk
0:02:05.2]} 25... Be3 {[%clk 0:02:04.4]} 26. Bf2 {[%clk 0:02:03.6]} 26... Rxg1
{[%clk 0:02:03.7]} 27. Bxg1 {[%clk 0:02:05.5]} 27... Bd4+ {[%clk 0:01:52.3]} 28.
Nxd4 {[%clk 0:01:24.8]} 28... cxd4 {[%clk 0:01:52.6]} 29. h3 {[%clk 0:01:21.1]}
29... Kc6 {[%clk 0:01:41.8]} 30. Bf2 {[%clk 0:01:21.8]} 30... Kd6 {[%clk
0:01:42.2]} 31. a3 {[%clk 0:01:14.7]} 31... a5 {[%clk 0:01:41.6]} 32. a4 {[%clk
0:00:51.8]} 32... c5 {[%clk 0:01:35.4]} 33. Bxh4 {[%clk 0:00:52.5]} 33... Ke6
{[%clk 0:01:33.8]} 34. Bg3 {[%clk 0:00:36.3]} 34... Bh7 {[%clk 0:01:00.7]} 35.
Kc1 {[%clk 0:00:34]} 35... Kf7 {[%clk 0:00:58]} 36. Kd2 {[%clk 0:00:35.6]} 36...
Kg6 {[%clk 0:00:58.5]} 37. Kd3 {[%clk 0:00:37.2]} 37... Bg8 {[%clk 0:00:58.9]}
38. f4 {[%clk 0:00:38.1]} 38... Kf7 {[%clk 0:00:22.5]} 39. fxe5 {[%clk 0:00:36]}
39... fxe5 {[%clk 0:00:22.5]} 40. Bxe5 {[%clk 0:00:37.9]} 40... Ke6 {[%clk
0:00:24.1]} 41. Bc7 {[%clk 0:00:38.9]} 41... Kd7 {[%clk 0:00:21.7]} 42. Bxa5
{[%clk 0:00:40]} 42... Be6 {[%clk 0:00:20.8]} 43. Bb6 {[%clk 0:00:38]} 43... Kc6
{[%clk 0:00:21.9]} 44. Bd8 {[%clk 0:00:39.3]} 44... Kd7 {[%clk 0:00:23.6]} 45.
Bf6 {[%clk 0:00:40.2]} 45... Kc6 {[%clk 0:00:25.2]} 46. a5 {[%clk 0:00:31.2]}
46... Kb5 {[%clk 0:00:25.7]} 47. Bd8 {[%clk 0:00:30.1]} 47... Bd7 {[%clk
0:00:23.9]} 48. Be7 {[%clk 0:00:29.5]} 48... Bc8 {[%clk 0:00:23]} 49. e5 {[%clk
0:00:23.8]} 49... Kc6 {[%clk 0:00:24.6]} 50. Bd6 {[%clk 0:00:20.9]} 50... Kd5
{[%clk 0:00:24.6]} 51. h4 {[%clk 0:00:14.2]} 51... Bxg4 {[%clk 0:00:24]} 52. a6
{[%clk 0:00:15.6]} 52... Bc8 {[%clk 0:00:21.5]} 53. a7 {[%clk 0:00:15.5]} 53...
Bb7 {[%clk 0:00:22.3]} 54. h5 {[%clk 0:00:17]} 54... Ke6 {[%clk 0:00:21.6]} 55.
h6 {[%clk 0:00:18.4]} 55... Kf7 {[%clk 0:00:16.9]} 56. h7 {[%clk 0:00:19.8]}
56... Kg7 {[%clk 0:00:18.5]} 57. e6 {[%clk 0:00:21.5]} 57... Ba6+ {[%clk
0:00:16.8]} 58. Kd2 {[%clk 0:00:22.3]} 1-0